[Event "Early-Titled-Tuesday-Blitz-December-26-2023"]
[Site "Chess.com"]
[Date "2023.12.26"]
[Round "7"]
[White "LeoWin2012"]
[Black "ChessSwole"]
[Result "0-1"]
[WhiteElo "2225"]
[BlackElo "2704"]
[TimeControl "180+1"]
[EndTime "9:17:19 PST"]
[Termination "ChessSwole won by checkmate"]

1. e4 {[%clk 0:03:00.9]} 1... e6 {[%clk 0:02:59.8]} 2. d4 {[%clk 0:02:59.7]}
2... d5 {[%clk 0:03:00]} 3. Nd2 {[%clk 0:02:59.1]} 3... c5 {[%clk 0:02:59.6]} 4.
Ngf3 {[%clk 0:02:58.4]} 4... cxd4 {[%clk 0:02:56.3]} 5. Nxd4 {[%clk 0:02:59.3]}
5... Nf6 {[%clk 0:02:56]} 6. Bb5+ {[%clk 0:02:52.8]} 6... Bd7 {[%clk 0:02:54.1]}
7. Bxd7+ {[%clk 0:02:52.8]} 7... Nbxd7 {[%clk 0:02:51.8]} 8. exd5 {[%clk
0:02:51.5]} 8... Nxd5 {[%clk 0:02:51.2]} 9. O-O {[%clk 0:02:49.7]} 9... Be7
{[%clk 0:02:50.2]} 10. Ne4 {[%clk 0:02:41.4]} 10... O-O {[%clk 0:02:46.5]} 11.
c4 {[%clk 0:02:27.3]} 11... N5f6 {[%clk 0:02:45.9]} 12. Nc3 {[%clk 0:02:22.8]}
12... Rc8 {[%clk 0:02:44]} 13. b3 {[%clk 0:02:22.4]} 13... a6 {[%clk 0:02:39.2]}
14. Bb2 {[%clk 0:02:21.6]} 14... Qc7 {[%clk 0:02:35.6]} 15. Rc1 {[%clk 0:02:12]}
15... Rfd8 {[%clk 0:02:32.8]} 16. Qe2 {[%clk 0:02:01.4]} 16... Bd6 {[%clk
0:02:31]} 17. h3 {[%clk 0:01:58.3]} 17... Bh2+ {[%clk 0:02:29.4]} 18. Kh1 {[%clk
0:01:57.2]} 18... Bf4 {[%clk 0:02:30.3]} 19. Rcd1 {[%clk 0:01:55.4]} 19... Nf8
{[%clk 0:02:22.5]} 20. Ne4 {[%clk 0:01:49.8]} 20... Be5 {[%clk 0:02:15.9]} 21.
Nxf6+ {[%clk 0:01:46.9]} 21... Bxf6 {[%clk 0:02:16.8]} 22. Nf3 {[%clk
0:01:44.9]} 22... Qf4 {[%clk 0:02:09.8]} 23. Bxf6 {[%clk 0:01:39.1]} 23... Qxf6
{[%clk 0:02:10.7]} 24. Rxd8 {[%clk 0:01:33.7]} 24... Rxd8 {[%clk 0:02:10.7]} 25.
Rd1 {[%clk 0:01:34.4]} 25... h6 {[%clk 0:02:07.1]} 26. g3 {[%clk 0:01:14.7]}
26... Ng6 {[%clk 0:02:03.2]} 27. Kh2 {[%clk 0:01:06.1]} 27... h5 {[%clk
0:02:01.4]} 28. h4 {[%clk 0:01:05.1]} 28... Rxd1 {[%clk 0:01:50.5]} 29. Qxd1
{[%clk 0:01:04.5]} 29... Qb2 {[%clk 0:01:51.3]} 30. Qd8+ {[%clk 0:00:53.4]}
30... Nf8 {[%clk 0:01:51.5]} 31. Qd2 {[%clk 0:00:37.3]} 31... Qf6 {[%clk
0:01:50.7]} 32. Kg2 {[%clk 0:00:32.2]} 32... Qe7 {[%clk 0:01:46.8]} 33. Qa5
{[%clk 0:00:25.8]} 33... g6 {[%clk 0:01:42.6]} 34. b4 {[%clk 0:00:20.4]} 34...
Qd6 {[%clk 0:01:38]} 35. a3 {[%clk 0:00:16.6]} 35... Qc6 {[%clk 0:01:33.6]} 36.
c5 {[%clk 0:00:12.6]} 36... Nd7 {[%clk 0:01:33.4]} 37. Qd8+ {[%clk 0:00:12.4]}
37... Kg7 {[%clk 0:01:33]} 38. Qe8 {[%clk 0:00:04.2]} 38... Qd5 {[%clk
0:01:27.1]} 39. Qd8 {[%clk 0:00:03.9]} 39... e5 {[%clk 0:01:19.8]} 40. Qg5
{[%clk 0:00:03.7]} 40... Qc6 {[%clk 0:01:11.9]} 41. Qe3 {[%clk 0:00:04.1]} 41...
a5 {[%clk 0:01:08]} 42. Kh2 {[%clk 0:00:04.1]} 42... Qd5 {[%clk 0:01:02.9]} 43.
Qc3 {[%clk 0:00:02.6]} 43... a4 {[%clk 0:01:00.8]} 44. Qe3 {[%clk 0:00:01.2]}
44... Kg8 {[%clk 0:00:59.4]} 45. Qc3 {[%clk 0:00:01.3]} 45... e4 {[%clk
0:00:56.2]} 46. Qe3 {[%clk 0:00:01.9]} 46... exf3 {[%clk 0:00:55.6]} 47. Qe8+
{[%clk 0:00:02]} 47... Kg7 {[%clk 0:00:56.1]} 48. Qe3 {[%clk 0:00:02]} 48... Nf6
{[%clk 0:00:55.3]} 49. Qc3 {[%clk 0:00:01.8]} 49... Qa2 {[%clk 0:00:51.1]} 50.
b5 {[%clk 0:00:01.3]} 50... Qxf2+ {[%clk 0:00:51]} 51. Kh3 {[%clk 0:00:01.5]}
51... Qg2# {[%clk 0:00:51.9]} 0-1

[Event "Early-Titled-Tuesday-Blitz-December-26-2023"]
[Site "Chess.com"]
[Date "2023.12.26"]
[Round "7"]
[White "Louis64"]
[Black "GMT4114"]
[Result "1-0"]
[WhiteElo "2277"]
[BlackElo "2013"]
[TimeControl "180+1"]
[EndTime "9:17:21 PST"]
[Termination "Louis64 won on time"]

1. e4 {[%clk 0:02:55.2]} 1... e6 {[%clk 0:03:00.1]} 2. d4 {[%clk 0:02:54.8]}
2... d5 {[%clk 0:03:00.6]} 3. Nc3 {[%clk 0:02:53.7]} 3... Bb4 {[%clk 0:03:00.2]}
4. e5 {[%clk 0:02:54]} 4... Qd7 {[%clk 0:03:00.5]} 5. Bd2 {[%clk 0:02:51.8]}
5... b6 {[%clk 0:02:59.7]} 6. Bb5 {[%clk 0:02:51.8]} 6... c6 {[%clk 0:02:57.7]}
7. Ba4 {[%clk 0:02:52]} 7... Ba6 {[%clk 0:02:54.1]} 8. Nce2 {[%clk 0:02:51.6]}
8... Bf8 {[%clk 0:02:26.3]} 9. c3 {[%clk 0:02:49.7]} 9... Ne7 {[%clk 0:02:26.4]}
10. Nf3 {[%clk 0:02:46.8]} 10... Nf5 {[%clk 0:02:20.5]} 11. Bc2 {[%clk
0:02:45.9]} 11... c5 {[%clk 0:02:11.2]} 12. O-O {[%clk 0:02:43.6]} 12... Nc6
{[%clk 0:02:07.2]} 13. Re1 {[%clk 0:02:40.2]} 13... cxd4 {[%clk 0:01:56.9]} 14.
Bxf5 {[%clk 0:02:36.6]} 14... dxc3 {[%clk 0:01:49.1]} 15. Bxc3 {[%clk 0:02:11]}
15... exf5 {[%clk 0:01:45]} 16. Ned4 {[%clk 0:02:11]} 16... O-O-O {[%clk
0:01:27]} 17. Rc1 {[%clk 0:01:20.9]} 17... Kb8 {[%clk 0:01:19.7]} 18. e6 {[%clk
0:01:16.7]} 18... fxe6 {[%clk 0:01:19.4]} 19. Nxc6+ {[%clk 0:01:15.2]} 19... Ka8
{[%clk 0:01:11.2]} 20. Nfe5 {[%clk 0:01:11.6]} 20... Qe8 {[%clk 0:01:03.5]} 21.
Nxd8 {[%clk 0:01:09.8]} 21... Qxd8 {[%clk 0:01:03.8]} 22. Nf7 {[%clk 0:01:09.6]}
22... Qh4 {[%clk 0:00:51.6]} 23. Nxh8 {[%clk 0:00:53.8]} 23... Bc5 {[%clk
0:00:50.4]} 24. Qf3 {[%clk 0:00:41.3]} 24... Bb7 {[%clk 0:00:46.8]} 25. Be5
{[%clk 0:00:35.1]} 25... g5 {[%clk 0:00:35.1]} 26. Qg3 {[%clk 0:00:22.7]} 26...
Qh6 {[%clk 0:00:34.4]} 27. Nf7 {[%clk 0:00:21.5]} 27... Qg6 {[%clk 0:00:19.6]}
28. Nd8 {[%clk 0:00:20.3]} 28... Ba6 {[%clk 0:00:16.5]} 29. a3 {[%clk
0:00:17.2]} 29... h5 {[%clk 0:00:16]} 30. b4 {[%clk 0:00:17.2]} 30... Be7 {[%clk
0:00:16.1]} 31. Nc6 {[%clk 0:00:16.6]} 31... Bf8 {[%clk 0:00:12.4]} 32. Qc3
{[%clk 0:00:15.6]} 32... Bc4 {[%clk 0:00:05.8]} 33. Bg3 {[%clk 0:00:15.4]} 33...
f4 {[%clk 0:00:06]} 34. Qe5 {[%clk 0:00:15.8]} 34... Kb7 {[%clk 0:00:02.8]} 35.
b5 {[%clk 0:00:16.2]} 1-0

[Event "Early-Titled-Tuesday-Blitz-December-26-2023"]
[Site "Chess.com"]
[Date "2023.12.26"]
[Round "7"]
[White "ftorodent"]
[Black "Slovak_fighter2000"]
[Result "1-0"]
[WhiteElo "2629"]
[BlackElo "2503"]
[TimeControl "180+1"]
[EndTime "9:17:25 PST"]
[Termination "ftorodent won on time"]

1. d4 {[%clk 0:02:56.1]} 1... Nf6 {[%clk 0:02:56.1]} 2. c4 {[%clk 0:02:56]} 2...
e6 {[%clk 0:02:55]} 3. Nf3 {[%clk 0:02:56]} 3... d5 {[%clk 0:02:54.1]} 4. Nc3
{[%clk 0:02:55.7]} 4... a6 {[%clk 0:02:54.2]} 5. cxd5 {[%clk 0:02:53.8]} 5...
exd5 {[%clk 0:02:54.3]} 6. Bf4 {[%clk 0:02:52.4]} 6... Bd6 {[%clk 0:02:53.4]} 7.
e3 {[%clk 0:02:52.5]} 7... O-O {[%clk 0:02:52.3]} 8. Be2 {[%clk 0:02:48.4]} 8...
Nc6 {[%clk 0:02:42.3]} 9. O-O {[%clk 0:02:46.8]} 9... Ne7 {[%clk 0:02:40.1]} 10.
Bg5 {[%clk 0:02:39.4]} 10... Be6 {[%clk 0:02:22.7]} 11. Bxf6 {[%clk 0:02:35.3]}
11... gxf6 {[%clk 0:02:23.6]} 12. g3 {[%clk 0:02:33.4]} 12... c6 {[%clk
0:02:23.1]} 13. Ne1 {[%clk 0:02:30.1]} 13... Bf5 {[%clk 0:02:21.5]} 14. Bd3
{[%clk 0:02:27.5]} 14... Bg6 {[%clk 0:02:21.2]} 15. Ng2 {[%clk 0:02:25.6]} 15...
Kg7 {[%clk 0:02:19.5]} 16. f4 {[%clk 0:02:14.2]} 16... f5 {[%clk 0:02:00.5]} 17.
Qc2 {[%clk 0:02:10.9]} 17... Qd7 {[%clk 0:02:00]} 18. Na4 {[%clk 0:02:02.6]}
18... Rfe8 {[%clk 0:01:58.5]} 19. Nb6 {[%clk 0:02:01.3]} 19... Qe6 {[%clk
0:01:56.9]} 20. Nxa8 {[%clk 0:02:00.9]} 20... Rxa8 {[%clk 0:01:57.8]} 21. Rae1
{[%clk 0:01:59.6]} 21... Re8 {[%clk 0:01:55.5]} 22. Nh4 {[%clk 0:01:59.1]} 22...
Qf6 {[%clk 0:01:54.1]} 23. Nf3 {[%clk 0:01:57.9]} 23... Qe6 {[%clk 0:01:49.7]}
24. Nh4 {[%clk 0:01:53.5]} 24... Qf6 {[%clk 0:01:49]} 25. Kg2 {[%clk 0:01:52.2]}
25... Rc8 {[%clk 0:01:43.8]} 26. Qc3 {[%clk 0:01:48.8]} 26... Kg8 {[%clk
0:01:40.3]} 27. b4 {[%clk 0:01:44]} 27... Qe6 {[%clk 0:01:34.2]} 28. a3 {[%clk
0:01:42.7]} 28... Rc7 {[%clk 0:01:31.3]} 29. Nf3 {[%clk 0:01:41.7]} 29... Kg7
{[%clk 0:01:26.1]} 30. Rf2 {[%clk 0:01:38.9]} 30... f6 {[%clk 0:01:22.3]} 31.
Nh4 {[%clk 0:01:38.2]} 31... Nc8 {[%clk 0:01:17.1]} 32. g4 {[%clk 0:01:35.8]}
32... Ne7 {[%clk 0:01:15.8]} 33. Qc2 {[%clk 0:01:35.2]} 33... Qc8 {[%clk
0:00:58.1]} 34. gxf5 {[%clk 0:01:33.4]} 34... Bh5 {[%clk 0:00:56.2]} 35. Kh1
{[%clk 0:01:33.1]} 35... Kh8 {[%clk 0:00:53.6]} 36. Rg1 {[%clk 0:01:32.4]} 36...
Ng8 {[%clk 0:00:50.8]} 37. Be2 {[%clk 0:01:28.8]} 37... Qe8 {[%clk 0:00:44.9]}
38. Rfg2 {[%clk 0:01:23.7]} 38... Nh6 {[%clk 0:00:43.1]} 39. Rg3 {[%clk
0:01:09.5]} 39... Bf7 {[%clk 0:00:30.8]} 40. Bd3 {[%clk 0:01:05.8]} 40... Bf8
{[%clk 0:00:26.4]} 41. Qg2 {[%clk 0:00:58.2]} 41... Re7 {[%clk 0:00:25]} 42. Qh3
{[%clk 0:00:57.7]} 42... Bh5 {[%clk 0:00:20.4]} 43. Ng6+ {[%clk 0:00:51.9]}
43... hxg6 {[%clk 0:00:16.4]} 44. fxg6 {[%clk 0:00:52]} 44... Bg7 {[%clk
0:00:05.6]} 45. Re1 {[%clk 0:00:47.4]} 45... Bg4 {[%clk 0:00:04.1]} 46. Rxg4
{[%clk 0:00:46.2]} 46... Kg8 {[%clk 0:00:03.7]} 47. Rh4 {[%clk 0:00:43.9]} 47...
f5 {[%clk 0:00:02.8]} 48. Rxh6 {[%clk 0:00:41.6]} 48... Bxh6 {[%clk 0:00:02.6]}
49. Qxh6 {[%clk 0:00:41.8]} 1-0

[Event "Early-Titled-Tuesday-Blitz-December-26-2023"]
[Site "Chess.com"]
[Date "2023.12.26"]
[Round "7"]
[White "Ezov"]
[Black "Aleksandar-Topalov"]
[Result "0-1"]
[WhiteElo "2148"]
[BlackElo "2356"]
[TimeControl "180+1"]
[EndTime "9:17:26 PST"]
[Termination "Aleksandar-Topalov won by checkmate"]

1. d4 {[%clk 0:03:00.9]} 1... Nf6 {[%clk 0:02:59.6]} 2. Nc3 {[%clk 0:03:00]}
2... d5 {[%clk 0:02:59.2]} 3. Bf4 {[%clk 0:02:58.8]} 3... Bf5 {[%clk 0:02:58.9]}
4. Qd2 {[%clk 0:02:58]} 4... c6 {[%clk 0:02:58.9]} 5. O-O-O {[%clk 0:02:56.9]}
5... Nbd7 {[%clk 0:02:58.9]} 6. f3 {[%clk 0:02:56.2]} 6... h5 {[%clk 0:02:58.2]}
7. e3 {[%clk 0:02:52.7]} 7... e6 {[%clk 0:02:57.6]} 8. Bd3 {[%clk 0:02:52.2]}
8... Bxd3 {[%clk 0:02:56.8]} 9. Qxd3 {[%clk 0:02:53.1]} 9... Qa5 {[%clk
0:02:56.8]} 10. Nge2 {[%clk 0:02:50.4]} 10... b5 {[%clk 0:02:55.8]} 11. a3
{[%clk 0:02:09.9]} 11... b4 {[%clk 0:02:52.2]} 12. Nb1 {[%clk 0:02:06.5]} 12...
c5 {[%clk 0:02:41.4]} 13. dxc5 {[%clk 0:01:48.8]} 13... Nxc5 {[%clk 0:02:34.7]}
14. Qd2 {[%clk 0:01:42.2]} 14... Rc8 {[%clk 0:02:30]} 15. Nd4 {[%clk 0:01:32.9]}
15... Ncd7 {[%clk 0:02:05.8]} 16. axb4 {[%clk 0:01:13.3]} 16... Bxb4 {[%clk
0:02:04.1]} 17. c3 {[%clk 0:01:13.2]} 17... e5 {[%clk 0:02:01.6]} 18. Nf5 {[%clk
0:01:07.5]} 18... exf4 {[%clk 0:01:58.7]} 19. Nxg7+ {[%clk 0:01:01.5]} 19... Kf8
{[%clk 0:01:58.7]} 20. Nf5 {[%clk 0:01:01.4]} 20... fxe3 {[%clk 0:01:41]} 21.
Qxe3 {[%clk 0:00:57.5]} 21... Bc5 {[%clk 0:01:40.1]} 22. Qg5 {[%clk 0:00:51.3]}
22... Rh7 {[%clk 0:01:31.7]} 23. Rhe1 {[%clk 0:00:48.4]} 23... Rb8 {[%clk
0:01:19.6]} 24. Re2 {[%clk 0:00:38.4]} 24... Qb5 {[%clk 0:01:15.7]} 25. Rde1
{[%clk 0:00:35.8]} 25... a5 {[%clk 0:01:06.3]} 26. g4 {[%clk 0:00:27.8]} 26...
a4 {[%clk 0:01:04.5]} 27. gxh5 {[%clk 0:00:20.6]} 27... a3 {[%clk 0:01:04.5]}
28. Nxa3 {[%clk 0:00:19.8]} 28... Bxa3 {[%clk 0:01:04.7]} 29. bxa3 {[%clk
0:00:20.1]} 29... Qb1+ {[%clk 0:01:04.6]} 30. Kd2 {[%clk 0:00:19.8]} 30... Qb2+
{[%clk 0:00:58.4]} 31. Ke3 {[%clk 0:00:18.7]} 31... Qxc3+ {[%clk 0:00:53.7]} 32.
Kf2 {[%clk 0:00:18.5]} 32... Qxa3 {[%clk 0:00:40.4]} 33. Re3 {[%clk 0:00:17.7]}
33... Rb2+ {[%clk 0:00:28.5]} 34. Kg3 {[%clk 0:00:16.8]} 34... Qa8 {[%clk
0:00:27.4]} 35. Re7 {[%clk 0:00:15.1]} 35... Qb8+ {[%clk 0:00:26.7]} 36. f4
{[%clk 0:00:13.4]} 36... Nxh5+ {[%clk 0:00:25.4]} 37. Qxh5 {[%clk 0:00:10.9]}
37... Rxh5 {[%clk 0:00:24.1]} 38. Rxd7 {[%clk 0:00:11]} 38... Rbxh2 {[%clk
0:00:18.8]} 39. Ree7 {[%clk 0:00:11]} 39... Qb3+ {[%clk 0:00:12.3]} 40. Kg4
{[%clk 0:00:10.8]} 40... Qh3# {[%clk 0:00:11.3]} 0-1

[Event "Early-Titled-Tuesday-Blitz-December-26-2023"]
[Site "Chess.com"]
[Date "2023.12.26"]
[Round "7"]
[White "BogdanDeac"]
[Black "Hikaru"]
[Result "1/2-1/2"]
[WhiteElo "3017"]
[BlackElo "3216"]
[TimeControl "180+1"]
[EndTime "9:17:33 PST"]
[Termination "Game drawn by repetition"]

1. d4 {[%clk 0:03:00.9]} 1... a6 {[%clk 0:02:50.1]} 2. e4 {[%clk 0:02:59.8]}
2... c6 {[%clk 0:02:46.6]} 3. Nc3 {[%clk 0:03:00]} 3... d5 {[%clk 0:02:47.1]} 4.
Nf3 {[%clk 0:03:00.4]} 4... Bg4 {[%clk 0:02:46.7]} 5. h3 {[%clk 0:03:00.5]} 5...
Bh5 {[%clk 0:02:35]} 6. exd5 {[%clk 0:02:58.1]} 6... cxd5 {[%clk 0:02:34.9]} 7.
g4 {[%clk 0:02:58.4]} 7... Bg6 {[%clk 0:02:35.6]} 8. h4 {[%clk 0:02:58.4]} 8...
Nc6 {[%clk 0:02:18.7]} 9. h5 {[%clk 0:02:54.7]} 9... Be4 {[%clk 0:02:18.7]} 10.
Nxe4 {[%clk 0:02:54.2]} 10... dxe4 {[%clk 0:02:18.9]} 11. Ne5 {[%clk 0:02:54.8]}
11... Nxd4 {[%clk 0:02:04.3]} 12. c3 {[%clk 0:02:54.1]} 12... Nf3+ {[%clk
0:02:01.2]} 13. Nxf3 {[%clk 0:02:52.2]} 13... Qxd1+ {[%clk 0:02:01.4]} 14. Kxd1
{[%clk 0:02:53.1]} 14... exf3 {[%clk 0:02:01.3]} 15. Rh3 {[%clk 0:02:48.2]}
15... h6 {[%clk 0:01:57.1]} 16. Rxf3 {[%clk 0:02:40.3]} 16... Nf6 {[%clk
0:01:57.5]} 17. Rf4 {[%clk 0:02:33.6]} 17... e6 {[%clk 0:01:52.3]} 18. a4 {[%clk
0:02:21.1]} 18... Bd6 {[%clk 0:01:31.8]} 19. Rc4 {[%clk 0:02:20.6]} 19... Kd7
{[%clk 0:01:31.9]} 20. a5 {[%clk 0:01:57]} 20... Rac8 {[%clk 0:01:29.3]} 21.
Rca4 {[%clk 0:01:55.8]} 21... Bc5 {[%clk 0:01:20.3]} 22. Bg2 {[%clk 0:01:44.5]}
22... Rhd8 {[%clk 0:01:17.9]} 23. Ke2 {[%clk 0:01:35.5]} 23... Nd5 {[%clk
0:01:17.3]} 24. c4 {[%clk 0:01:20.5]} 24... Nb4 {[%clk 0:01:17.6]} 25. Bxb7
{[%clk 0:00:39]} 25... Rb8 {[%clk 0:01:17.1]} 26. Rxb4 {[%clk 0:00:37.4]} 26...
Bxb4 {[%clk 0:01:18]} 27. Bxa6 {[%clk 0:00:37.6]} 27... Ra8 {[%clk 0:01:14.9]}
28. Bb5+ {[%clk 0:00:36.2]} 28... Kc7 {[%clk 0:01:15.6]} 29. a6 {[%clk
0:00:26.3]} 29... Bc5 {[%clk 0:00:49.1]} 30. Bf4+ {[%clk 0:00:22.8]} 30... Kb6
{[%clk 0:00:47.6]} 31. Bd2 {[%clk 0:00:22.7]} 31... Ka7 {[%clk 0:00:45.2]} 32.
b4 {[%clk 0:00:10.9]} 32... Rxd2+ {[%clk 0:00:39.9]} 33. Kxd2 {[%clk 0:00:10.5]}
33... Bxb4+ {[%clk 0:00:40.4]} 34. Ke2 {[%clk 0:00:11.2]} 34... Rd8 {[%clk
0:00:40.5]} 35. Rd1 {[%clk 0:00:10.8]} 35... Rxd1 {[%clk 0:00:20.1]} 36. Kxd1
{[%clk 0:00:11.7]} 36... g6 {[%clk 0:00:20.6]} 37. Be8 {[%clk 0:00:08]} 37...
gxh5 {[%clk 0:00:20.3]} 38. gxh5 {[%clk 0:00:08.1]} 38... Kxa6 {[%clk
0:00:19.3]} 39. Bxf7 {[%clk 0:00:08.3]} 39... e5 {[%clk 0:00:19.9]} 40. Ke2
{[%clk 0:00:08.6]} 40... Kb6 {[%clk 0:00:18.1]} 41. Kd3 {[%clk 0:00:08.8]} 41...
Be1 {[%clk 0:00:16.8]} 42. f3 {[%clk 0:00:08.8]} 42... Bg3 {[%clk 0:00:16.4]}
43. Ke4 {[%clk 0:00:08.8]} 43... Kc5 {[%clk 0:00:17.1]} 44. Kf5 {[%clk 0:00:09]}
44... Bf4 {[%clk 0:00:18]} 45. Bd5 {[%clk 0:00:09.2]} 45... Kd6 {[%clk
0:00:18.1]} 46. Ke4 {[%clk 0:00:09.8]} 46... Kc5 {[%clk 0:00:19]} 47. Kf5 {[%clk
0:00:10.4]} 47... Kd6 {[%clk 0:00:19.5]} 48. Ke4 {[%clk 0:00:11.2]} 48... Kc5
{[%clk 0:00:20.4]} 49. Kf5 {[%clk 0:00:11.8]} 1/2-1/2

[Event "Early-Titled-Tuesday-Blitz-December-26-2023"]
[Site "Chess.com"]
[Date "2023.12.26"]
[Round "7"]
[White "YaWaleriy"]
[Black "JAN2404"]
[Result "1-0"]
[WhiteElo "2263"]
[BlackElo "1950"]
[TimeControl "180+1"]
[EndTime "9:17:34 PST"]
[Termination "YaWaleriy won on time"]

1. d4 {[%clk 0:02:56.9]} 1... Nf6 {[%clk 0:02:59.5]} 2. Nf3 {[%clk 0:02:56.7]}
2... g6 {[%clk 0:02:58.6]} 3. c4 {[%clk 0:02:54.2]} 3... Bg7 {[%clk 0:02:58.6]}
4. Nc3 {[%clk 0:02:54.7]} 4... O-O {[%clk 0:02:59]} 5. e4 {[%clk 0:02:53.7]}
5... d6 {[%clk 0:02:59.2]} 6. Be2 {[%clk 0:02:54.1]} 6... e5 {[%clk 0:02:58.6]}
7. d5 {[%clk 0:02:52.9]} 7... Nbd7 {[%clk 0:02:58.1]} 8. Bg5 {[%clk 0:02:50.6]}
8... c6 {[%clk 0:02:58.1]} 9. Nd2 {[%clk 0:02:47.9]} 9... h6 {[%clk 0:02:50]}
10. Be3 {[%clk 0:02:47]} 10... a5 {[%clk 0:02:44.8]} 11. O-O {[%clk 0:02:43.3]}
11... Nc5 {[%clk 0:02:41.1]} 12. b3 {[%clk 0:02:41.9]} 12... Rb8 {[%clk
0:02:24.7]} 13. a3 {[%clk 0:02:39.5]} 13... Nfd7 {[%clk 0:01:49.4]} 14. b4
{[%clk 0:02:35]} 14... axb4 {[%clk 0:01:50.3]} 15. axb4 {[%clk 0:02:34.4]} 15...
Na6 {[%clk 0:01:50.8]} 16. Rb1 {[%clk 0:02:29.6]} 16... f5 {[%clk 0:01:42.3]}
17. f3 {[%clk 0:02:29.4]} 17... c5 {[%clk 0:01:31.2]} 18. b5 {[%clk 0:02:17.1]}
18... Nb4 {[%clk 0:01:30.9]} 19. Ra1 {[%clk 0:02:07.2]} 19... Nb6 {[%clk
0:01:01.6]} 20. Qb3 {[%clk 0:01:58.1]} 20... Bd7 {[%clk 0:00:46.5]} 21. Na2
{[%clk 0:01:48.2]} 21... Nxa2 {[%clk 0:00:35.1]} 22. Rxa2 {[%clk 0:01:47.9]}
22... Ra8 {[%clk 0:00:32.2]} 23. Rfa1 {[%clk 0:01:41.9]} 23... Rxa2 {[%clk
0:00:23.3]} 24. Rxa2 {[%clk 0:01:41.4]} 24... g5 {[%clk 0:00:22.5]} 25. exf5
{[%clk 0:01:33.2]} 25... Bxf5 {[%clk 0:00:21.8]} 26. Bd3 {[%clk 0:01:33.6]}
26... Qf6 {[%clk 0:00:11]} 27. Ne4 {[%clk 0:01:32.7]} 27... Bxe4 {[%clk
0:00:10.8]} 28. Bxe4 {[%clk 0:01:32.7]} 28... g4 {[%clk 0:00:10.7]} 29. Ra7
{[%clk 0:01:15.7]} 29... Rf7 {[%clk 0:00:10.1]} 30. Qd3 {[%clk 0:01:08.7]} 30...
gxf3 {[%clk 0:00:09.9]} 31. gxf3 {[%clk 0:01:07.4]} 31... h5 {[%clk 0:00:08.5]}
32. Bg6 {[%clk 0:00:52.4]} 32... Re7 {[%clk 0:00:09]} 33. Bxh5 {[%clk
0:00:50.6]} 33... Bh6 {[%clk 0:00:08.4]} 34. Bf2 {[%clk 0:00:42.1]} 34... Rf7
{[%clk 0:00:08]} 35. Bg4 {[%clk 0:00:41.8]} 35... Rg7 {[%clk 0:00:06]} 36. Kf1
{[%clk 0:00:34.5]} 36... Qf4 {[%clk 0:00:05.6]} 37. Bg3 {[%clk 0:00:31.3]} 37...
Qc1+ {[%clk 0:00:04.9]} 38. Kg2 {[%clk 0:00:31.2]} 38... e4 {[%clk 0:00:04.3]}
39. Qxe4 {[%clk 0:00:29.1]} 39... Qd2+ {[%clk 0:00:03]} 40. Kh3 {[%clk
0:00:22.8]} 1-0

[Event "Early-Titled-Tuesday-Blitz-December-26-2023"]
[Site "Chess.com"]
[Date "2023.12.26"]
[Round "7"]
[White "DTChess"]
[Black "MrrRefrao"]
[Result "1-0"]
[WhiteElo "2669"]
[BlackElo "2555"]
[TimeControl "180+1"]
[EndTime "9:17:38 PST"]
[Termination "DTChess won by resignation"]

1. e4 {[%clk 0:03:00.9]} 1... g6 {[%clk 0:03:00.9]} 2. d4 {[%clk 0:03:00.9]}
2... Bg7 {[%clk 0:03:01.2]} 3. Nc3 {[%clk 0:03:01.6]} 3... d6 {[%clk 0:03:01.6]}
4. Be3 {[%clk 0:03:01.2]} 4... a6 {[%clk 0:03:00.1]} 5. f3 {[%clk 0:03:00.8]}
5... b5 {[%clk 0:02:59.5]} 6. Qd2 {[%clk 0:03:01.1]} 6... Nd7 {[%clk 0:02:59.9]}
7. Nge2 {[%clk 0:03:00.9]} 7... Nb6 {[%clk 0:02:56]} 8. Nf4 {[%clk 0:02:57.4]}
8... c6 {[%clk 0:02:46.2]} 9. a3 {[%clk 0:02:56.7]} 9... Rb8 {[%clk 0:02:45.7]}
10. h4 {[%clk 0:02:56.5]} 10... h5 {[%clk 0:02:45.2]} 11. Be2 {[%clk 0:02:50.1]}
11... Nf6 {[%clk 0:02:31.1]} 12. e5 {[%clk 0:02:42.6]} 12... dxe5 {[%clk
0:02:32]} 13. dxe5 {[%clk 0:02:39]} 13... Qxd2+ {[%clk 0:02:31.9]} 14. Bxd2
{[%clk 0:02:30.2]} 14... Nfd5 {[%clk 0:01:58.3]} 15. Nfxd5 {[%clk 0:02:26.4]}
15... Nxd5 {[%clk 0:01:57.2]} 16. Nxd5 {[%clk 0:02:21.7]} 16... cxd5 {[%clk
0:01:58.1]} 17. Bc3 {[%clk 0:02:18.1]} 17... Bf5 {[%clk 0:01:47.5]} 18. O-O-O
{[%clk 0:02:10.6]} 18... e6 {[%clk 0:01:47.3]} 19. g4 {[%clk 0:01:47]} 19...
hxg4 {[%clk 0:01:46.1]} 20. fxg4 {[%clk 0:01:46.4]} 20... Be4 {[%clk 0:01:46.2]}
21. Rh3 {[%clk 0:01:45]} 21... Kd7 {[%clk 0:01:22.8]} 22. h5 {[%clk 0:01:42.7]}
22... gxh5 {[%clk 0:01:17.9]} 23. gxh5 {[%clk 0:01:42]} 23... Rbg8 {[%clk
0:01:10]} 24. Rf1 {[%clk 0:01:35.7]} 24... Bh6+ {[%clk 0:01:08.3]} 25. Kb1
{[%clk 0:01:33.8]} 25... Rh7 {[%clk 0:01:04.3]} 26. a4 {[%clk 0:01:19.9]} 26...
Bg2 {[%clk 0:00:50]} 27. Rg1 {[%clk 0:01:18.3]} 27... Rhg7 {[%clk 0:00:50.6]}
28. Rh4 {[%clk 0:01:12]} 28... Be3 {[%clk 0:00:08.1]} 29. Rd1 {[%clk 0:01:10]}
29... Kc6 {[%clk 0:00:05.6]} 30. axb5+ {[%clk 0:01:09.2]} 30... axb5 {[%clk
0:00:06.5]} 31. Rb4 {[%clk 0:01:08]} 31... Rb8 {[%clk 0:00:07.2]} 32. Rb3 {[%clk
0:01:05.2]} 32... Be4 {[%clk 0:00:04.5]} 33. Bb4 {[%clk 0:01:02.9]} 33... Bf4
{[%clk 0:00:01.8]} 34. Rc3+ {[%clk 0:00:59]} 34... Kd7 {[%clk 0:00:02.1]} 35.
Bd6 {[%clk 0:00:58.6]} 35... Rb7 {[%clk 0:00:01.8]} 36. Bd3 {[%clk 0:00:50]}
36... Bxd3 {[%clk 0:00:01.2]} 37. Rcxd3 {[%clk 0:00:48.8]} 37... Rh7 {[%clk
0:00:02.1]} 38. Rh3 {[%clk 0:00:48.5]} 38... b4 {[%clk 0:00:02.4]} 39. Ka2
{[%clk 0:00:47.5]} 39... f6 {[%clk 0:00:02.8]} 40. Re1 {[%clk 0:00:44.9]} 40...
Bxe5 {[%clk 0:00:02.9]} 41. Bxe5 {[%clk 0:00:45.2]} 41... fxe5 {[%clk
0:00:03.8]} 42. Rxe5 {[%clk 0:00:45.8]} 42... Kd6 {[%clk 0:00:04.5]} 43. Rg5
{[%clk 0:00:46.1]} 43... Rbf7 {[%clk 0:00:04]} 44. Kb3 {[%clk 0:00:45.3]} 44...
Rf4 {[%clk 0:00:04.1]} 45. h6 {[%clk 0:00:45.2]} 45... e5 {[%clk 0:00:03.2]} 46.
Rg6+ {[%clk 0:00:45.2]} 46... Kc5 {[%clk 0:00:03.7]} 47. Rh5 {[%clk 0:00:44.3]}
47... Re4 {[%clk 0:00:02.3]} 48. Rgg5 {[%clk 0:00:42.4]} 48... Re3+ {[%clk
0:00:01.9]} 49. c3 {[%clk 0:00:41.2]} 49... bxc3 {[%clk 0:00:01.3]} 50. bxc3
{[%clk 0:00:42.1]} 50... Rb7+ {[%clk 0:00:01.5]} 51. Kc2 {[%clk 0:00:42.1]}
51... d4 {[%clk 0:00:01.8]} 52. Rxe5+ {[%clk 0:00:41.9]} 52... Kd6 {[%clk
0:00:02]} 53. Rxe3 {[%clk 0:00:40.3]} 53... Rc7 {[%clk 0:00:02.9]} 54. Rd3
{[%clk 0:00:40]} 1-0